Cogmind - Beta 17 @@@ ROGUE MODE // 2026.07.17 @ 22:50:56 Player: mischief_2000 Result: Destroyed by Striker with Plasma Lance Performance ------------- Evolutions (6) 3000 Regions Visited (19) 3800 Robots Destroyed (331) 1655 Value Destroyed (16504) 16504 Prototype IDs (16) 320 Alien Tech Used (0) 0 Bonus (10125) 10125 TOTAL SCORE: 35404 Bonus ------- High Alert Combat Kills 2619 Follower Combat Kills 232 Entered Garrisons 800 Entered DSFs 500 Acquired ECA 300 Met Warlord at Base 500 MAIN.C Attacked Warlord 500 Warlord Defense Kills 4674 Cogmind --------- Core Integrity 0/1150 Matter 300/300 Energy 14/100 System Corruption 3% Temperature Warm (107) Movement Core (50) Location -4/Warlord Parts ------- > --- POWER (2) -------- (None) > --- PROPULSION (6) --- (None) > --- UTILITY (6) ------ (None) > --- WEAPON (5) ------- (None) > --- INVENTORY (5) ---- Advanced Cryofiber Web Large Storage Unit High-capacity Matter Pod (200) Advanced Trap Extractor (7/8 Dirty Bomb) Self-destruct Interrupter (50) Peak State ------------ > --- POWER ------------ Fission Core Antimatter Reactor > --- PROPULSION ------- Flexi-carbon Leg Flexi-carbon Leg Flexi-carbon Leg Advanced VSS Leg Advanced VSS Leg Advanced VSS Leg > --- UTILITY ---------- Advanced Cooling System Improved Coolant Injector High-capacity Storage Unit Experimental Phase Shifter Advanced Hacking Suite Advanced System Shield > --- WEAPON ----------- Quantum Rifle Quantum Rifle Quantum Rifle Quantum Rifle Vortex Driver > --- INVENTORY -------- Vortex Chain Reactor Improved Coolant Injector Large Storage Unit High-capacity Matter Pod Remote Force Field Advanced Trap Extractor Phase Gun Long-range Proton Cannon Matter Neutralizer Vortex Driver Heavy Gauss Cannon Heavy Gauss Cannon Gravity Flail Gravity Flail Gravity Flail Gravity Flail Phasing Sabre Self-destruct Interrupter Self-destruct Interrupter [Rating: 137] Favorites ----------- Power Light Nuclear Core Engine Cooled Ion Engine Power Core Light Nuclear Core Reactor Antimatter Reactor Propulsion Advanced VSS Leg Treads Light Treads Leg Advanced VSS Leg Wheel Armored Wheel Hover Unit Improved Antigrav System Utility Huge Storage Unit Device Improved Heat Sink Storage Huge Storage Unit Processor Improved Targeting Computer Hackware Advanced Hacking Suite Protection Hardened Medium Armor Plating Weapon Enhanced Autogun Energy Gun Quantum Rifle Energy Cannon Advanced Beam Cannon Ballistic Gun Enhanced Autogun Ballistic Cannon Heavy Gauss Cannon Launcher Heavy Missile Launcher Special Weapon RU-N14's Throwing Claymores v3 Impact Weapon Powered Hammer Build | -11 -10 -9 -8 -8 -8 -8 -8 -8 -8 -7 -7 -7 -6 -5 -5 -4 -4 -4 -4 ------- Run | Yrd Mat Mat Mat Gar Mat Gar Mat Sto Gar Fac Gar Fac Fac Fac DSF Fac Upp Upp War Slots Evolved 12 | . . 2 2 . . . . . . 2 . . 2 2 . 2 . . . Power 1 | . . . . . . . . . . . . . . 1 . . . . . Propulsion 4 | . . . 1 . . . . . . . . . 2 1 . . . . . Utility 4 | . . 1 1 . . . . . . . . . . . . 2 . . . Weapon 3 | . . 1 . . . . . . . 2 . . . . . . . . . Parts Attached 221 | 7 11 19 3 11 14 11 1 5 13 1 23 19 13 2 15 8 12 12 21 Power 25 | 1 2 2 . 2 . 1 . 2 1 . 3 1 3 . 3 . 2 1 1 Engine 13 | 1 2 2 . . . . . 2 1 . 1 1 2 . 1 . . . . Core 7 | . . . . 2 . 1 . . . . 2 . . . 1 . 1 . . Reactor 5 | . . . . . . . . . . . . . 1 . 1 . 1 1 1 Propulsion 63 | 2 3 7 1 6 1 2 . 1 2 . 7 6 2 2 5 . 4 3 9 Treads 15 | 2 . 4 1 3 1 1 . 1 1 . 1 . . . . . . . . Leg 28 | . . . . . . . . . . . 3 4 2 2 5 . . 3 9 Wheel 16 | . 3 3 . 3 . 1 . . 1 . 3 2 . . . . . . . Hover 4 | . . . . . . . . . . . . . . . . . 4 . . Flight . | . . . . . . . . . . . . . . . . . . . . Utility 58 | 2 1 3 1 3 6 4 . 1 4 1 5 6 5 . 4 4 2 2 4 Device 26 | 1 . 2 1 3 . 3 . 1 1 1 2 3 1 . 1 . 2 1 3 Storage 6 | 1 1 . . . . . . . . . 1 1 . . 1 1 . . . Processor 5 | . . 1 . . . . . . . . 1 1 1 . . . . . 1 Hackware 8 | . . . . . 3 . . . . . . . 1 . 1 2 . 1 . Protection 13 | . . . . . 3 1 . . 3 . 1 1 2 . 1 1 . . . Artifact . | . . . . . . . . . . . . . . . . . . . . Weapon 75 | 2 5 7 1 . 7 4 1 1 6 . 8 6 3 . 3 4 4 6 7 Energy Gun 13 | 2 . . . . 4 . . . 1 . . . . . . . . 5 1 Energy Cannon 11 | . . 3 1 . . . . . . . . 1 1 . . . 3 . 2 Ballistic Gun 18 | . 3 3 . . 3 3 1 1 3 . 1 . . . . . . . . Ballistic Cannon 11 | . . 1 . . . . . . . . 3 2 1 . 3 . 1 . . Launcher 8 | . . . . . . 1 . . 2 . 4 . . . . 1 . . . Special Weapon 5 | . 1 . . . . . . . . . . . . . . . . . 4 Impact Weapon 9 | . 1 . . . . . . . . . . 3 1 . . 3 . 1 . Slashing Weapon . | . . . . . . . . . . . . . . . . . . . . Piercing Weapon . | . . . . . . . . . . . . . . . . . . . . Special Melee Weapon . | . . . . . . . . . . . . . . . . . . . . Unidentified Prototypes 14 | . . 1 . . 2 . . 1 1 . . . 1 . . 1 . . 7 Corrupted Parts 3 | . . . . . . . . . . . 1 . . . . . 1 1 . System Corruption 4 | . . . . . . . . . . . 1 . . . . . 1 2 . Parts Lost 85 | . 5 8 . 4 . 2 . . 7 . 17 4 . . 2 1 1 6 28 Power 14 | . 1 2 . 1 . . . . . . 2 1 . . 2 . . 2 3 Propulsion 31 | . 2 4 . 3 . 1 . . 2 . 4 1 . . . . 1 . 13 Utility 15 | . . . . . . 1 . . 3 . 3 1 . . . 1 . 2 4 Weapon 25 | . 2 2 . . . . . . 2 . 8 1 . . . . . 2 8 Highest Loss Streak 15 | . 3 4 . 1 . 1 . . 2 . 12 2 . . 2 1 1 5 15 To Critical Strikes . | . . . . . . . . . . . . . . . . . . . . Average Backups 20 | 3 17 23 25 24 23 23 24 23 22 22 22 18 16 17 11 9 18 15 15 Power . | . 1 1 . . . . 1 1 . 1 . . . . . . . . . Propulsion 4 | 2 7 9 13 9 4 3 3 2 2 1 2 4 2 3 . . 1 1 . Utility 7 | . 4 8 8 8 9 7 7 7 7 8 8 7 7 10 8 6 7 5 5 Weapon 7 | . 3 3 3 4 9 12 13 12 11 12 11 7 5 4 3 2 9 8 8 Tool/Special . | . . . . . . . . . . . . . . . . . . . . Unused Backups 60 | . 4 9 . . 9 1 . 1 4 1 5 6 3 . 6 3 1 1 6 Power 7 | . 3 . . . . 1 . 1 . . . . . . . . . . 2 Propulsion 21 | . . 6 . . 3 . . . 4 . 4 2 2 . . . . . . Utility 23 | . . 2 . . 3 . . . . 1 1 3 1 . 6 2 . 1 3 Weapon 8 | . 1 1 . . 2 . . . . . . 1 . . . 1 1 . 1 Tool/Special 1 | . . . . . 1 . . . . . . . . . . . . . . Average Slot Usage (%) 90 | . 98 99 83 99 100 91 88 89 89 91 82 80 76 85 80 93 91 95 92 Engine 3 | . 13 11 9 1 . . . 5 9 7 5 1 5 11 2 . . . . Core 3 | . . . . 7 9 9 9 3 . . . 4 . . 3 5 4 5 4 Treads 5 | . 11 10 11 9 9 9 9 9 8 7 2 . . . . . . . . Leg 9 | . . . . . . . . . . . 3 16 32 32 34 31 11 26 29 Wheel 8 | . 16 10 9 17 18 10 7 9 9 7 8 5 . . . . . . . Hover 1 | . . . . . . . . . . . . . . . . . 18 1 . Device 12 | . 14 18 9 18 11 12 9 9 14 15 17 6 3 . 2 5 5 14 12 Storage 7 | . 14 11 9 9 9 9 9 9 9 7 7 7 6 5 5 5 5 5 4 Processor 1 | . . 2 9 9 . . . . . . . 1 . . . . . . 1 Hackware 2 | . . . . . 9 . . . . . . . . 5 5 12 10 9 9 Protection 5 | . . . . . 5 14 18 18 12 7 2 5 6 5 4 5 5 . . Energy Gun 4 | . 9 . . . 16 8 . . 5 . . . . . . . . 14 21 Energy Cannon 4 | . . 4 18 19 2 . . . . . . 6 4 5 . . 11 3 . Ballistic Gun 9 | . 17 22 9 . 7 18 27 26 14 37 25 . . . . . . . . Ballistic Cannon 4 | . . 5 . 7 . . . . . . 3 7 2 5 14 14 8 4 . Impact Weapon 2 | . . . . . . . . . 3 . 1 13 9 11 1 6 2 2 . Peak Build Rating 137 | 7 11 21 25 29 41 45 43 45 49 56 64 66 72 80 105 124 128 127 137 Average Rating 56 | 5 9 14 21 27 38 42 41 42 44 55 53 58 59 77 81 117 122 121 121 On Entrance 55 | . 7 11 21 25 29 41 43 43 45 46 56 64 52 71 76 105 123 120 126 Avg Prop Armor Cover (%) 6 | . 12 9 10 8 7 5 5 5 6 5 4 5 . . 6 . 3 2 . Naked Turns 2 | . . . . . . . . . . . . . . . . . . . 2 Heaviest Build 156 | 15 92 99 99 101 107 111 111 114 114 113 156 156 108 109 126 101 137 100 123 Greatest Support 135 | 40 40 32 16 28 24 28 28 28 28 28 32 57 89 113 116 110 110 114 135 Greatest Overweight (x) 46 | . 9 9 6 4 4 4 3 4 4 4 6 46 1 . 2 . 3 2 1 Average Overweight (x) 2 | . 3 6 6 3 4 3 3 3 3 4 3 5 . . . . 1 . . Largest Inventory Capacity 25 | 8 25 25 25 25 25 25 25 25 25 25 25 25 20 20 20 15 20 20 20 Average Capacity 22 | 7 21 25 25 25 25 25 25 25 25 25 25 24 20 20 12 12 19 15 19 Most Carried 25 | 7 25 25 25 25 25 25 25 25 25 25 25 25 20 19 20 15 20 20 20 Average Carried 21 | 4 17 23 24 24 24 24 24 24 23 24 23 23 19 18 11 9 18 15 16 Final Capacity 25 | 8 25 25 25 25 25 25 25 25 25 25 25 20 20 20 10 15 20 15 5 Final Carried 25 | 7 24 25 23 25 23 25 25 25 25 25 25 19 20 19 10 12 20 15 5 Class Distribution -------------------- 28% | Tank 14% | Gunner 12% | Mutant 11% | Scavenger-Tank 7% | Hacker-Skirmisher 6% | Derelict-Tank 5% | Scavenger-Mutant 4% | Skirmisher Dominant Class ---------------- Mutant | -10/Materials Skirmisher | -9/Materials Gunner | -8/Materials Gunner | -8/Garrison Tank | -8/Materials Tank | -8/Garrison Tank | -8/Materials Tank | -8/Storage Scavenger-Tank | -8/Garrison Tank | -7/Factory Scavenger-Tank | -7/Garrison Tank | -7/Factory Mutant | -6/Factory Mutant | -5/Factory Tank | -5/DSF Hacker-Tank | -4/Factory Derelict-Tank | -4/Upper Caves Hacker-Skirmisher | -4/Upper Caves Hacker-Skirmisher | -4/Warlord Resources | -11 -10 -9 -8 -8 -8 -8 -8 -8 -8 -7 -7 -7 -6 -5 -5 -4 -4 -4 -4 ----------- Run | Yrd Mat Mat Mat Gar Mat Gar Mat Sto Gar Fac Gar Fac Fac Fac DSF Fac Upp Upp War Matter Collected 10961 | 270 425 982 . 426 357 1085 260 428 1307 140 1215 574 875 . 783 485 519 534 296 Remotely . | . . . . . . . . . . . . . . . . . . . . Salvage Created 13241 | 169 735 1522 . 1331 792 1263 362 803 1300 155 1441 473 771 . 576 488 222 361 477 Parts 596 | 20 49 79 . 42 36 52 16 46 82 3 64 15 22 . 19 21 12 13 5 Haulers Intercepted 15 | . 1 5 . . 2 . 1 3 . . . . 1 . . 2 . . . Recyclers Shooed 4 | . . 3 . . . . . . . . . . 1 . . . . . . Parts Field Recycled . | . . . . . . . . . . . . . . . . . . . . Retrieved Matter . | . . . . . . . . . . . . . . . . . . . . Parts Self-Destructed 22 | . . . . . . . . . . . . . . . . . 9 13 . Prevented 2 | . . . . . . . . . . . . . . . . . 2 . . Parts Restored . | . . . . . . . . . . . . . . . . . . . . Kills | -11 -10 -9 -8 -8 -8 -8 -8 -8 -8 -7 -7 -7 -6 -5 -5 -4 -4 -4 -4 ------- Run | Yrd Mat Mat Mat Gar Mat Gar Mat Sto Gar Fac Gar Fac Fac Fac DSF Fac Upp Upp War Combat Hostiles Destroyed 267 | . 11 23 . 25 13 23 5 9 39 3 32 8 4 . 10 14 6 8 34 Melee 2 | . . . . . . . . . . . . 2 . . . . . . . Guns 118 | . 10 13 . . 11 21 5 9 13 3 27 . . . . . . 4 2 Cannons 57 | . . 10 . 22 2 . . . . . . 4 3 . 6 3 2 3 2 AOE 78 | . 1 . . . . 2 . . 25 . 3 . . . 3 10 4 . 30 Classes Destroyed 23 | 2 6 4 . 1 . 3 . . . . 3 . . . 1 1 1 . 1 Worker 7 | . . 1 . . 1 . . . . . . 2 . . . 3 . . . Builder 5 | . 3 . . . . . . 1 . . . 1 . . . . . . . Tunneler 7 | 4 . . . . . . . . . . . 1 1 . . 1 . . . Hauler 15 | . 1 5 . . 2 . 1 3 . . . . 1 . . 2 . . . Recycler 12 | 1 2 1 . . 1 . 1 1 . . . 2 3 . . . . . . Minesweeper 1 | . . . . . . . . . . . . . . . . . 1 . . Mechanic 2 | . . . . . . . . . . . . . . . . 1 . . 1 Operator 3 | . 2 . . . . . . 1 . . . . . . . . . . . Watcher 10 | . 2 4 . . 3 . . 1 . . . . . . . . . . . Swarmer 47 | . 3 . . 4 . . . . 16 . 7 1 . . . 10 3 1 2 Cutter 1 | . . . . . . 1 . . . . . . . . . . . . . Grunt 131 | . 8 14 . 17 6 20 3 4 12 3 13 1 . . 5 . 3 4 18 Brawler 8 | . . 1 . . 2 . . . . . . 1 . . 1 . . . 3 Duelist 5 | . . 2 . . . . . . . . 1 . . . . . . 1 1 Protector 4 | . . . . . . . . . . . 1 . . . . . . . 3 Sentry 31 | . . 6 . 3 4 . 2 5 1 . 4 1 3 . . 1 . 1 . Demolisher 4 | . . . . . . . . . . . 1 . . . . . . . 3 Specialist 4 | . . . . . . 2 . . . . . . . . 1 . . . 1 Hunter 11 | . . . . 1 1 1 . . . . 2 2 . . 2 2 . . . Programmer 15 | . . . . . . 1 . . 9 . 1 2 1 . . 1 . . . Heavy 1 | . . . . . . . . . . . . . . . 1 . . . . Behemoth 3 | . . . . . . . . . . . 2 . . . . . . 1 . Executioner 3 | . . . . . . . . . . . . . . . . . . . 3 Guerrilla 1 | . . . . . . . . . 1 . . . . . . . . . . Best Kill Streak 27 | 4 3 5 . 4 7 3 5 5 16 3 9 3 1 . 3 7 3 4 27 Combat Bots Only 27 | . 3 4 . 4 6 3 3 2 16 3 9 2 1 . 3 6 3 4 27 Max Kills in Single Turn 7 | 1 2 1 . 1 1 2 1 2 4 1 2 2 1 . 1 5 2 2 7 Gunslinging 1 | . . . . . . . . . . . 1 . . . . . . . . Exploded 7 | . 1 . . . . 1 . . 4 . 1 . . . 1 5 2 . 7 Melee 1 | . . . . . . . . . . . . 1 . . . . . . . Uniques/NPCs Destroyed . | . . . . . . . . . . . . . . . . . . . . Combat | -11 -10 -9 -8 -8 -8 -8 -8 -8 -8 -7 -7 -7 -6 -5 -5 -4 -4 -4 -4 -------- Run | Yrd Mat Mat Mat Gar Mat Gar Mat Sto Gar Fac Gar Fac Fac Fac DSF Fac Upp Upp War Hostile Shots Fired 1586 | . 81 97 . 84 33 64 12 42 163 4 212 160 121 . 61 103 24 69 256 Missed 493 | . 17 24 . 25 9 19 5 13 54 1 69 35 52 . 17 29 10 22 92 Hits 1093 | . 64 73 . 59 24 45 7 29 109 3 143 125 69 . 44 74 14 47 164 Melee 22 | . . 7 . . . . . . . . 2 7 . . . . . 3 3 Projectile 1071 | . 64 66 . 59 24 45 7 29 109 3 141 118 69 . 44 74 14 44 161 AOE 16 | . . . . . . 2 . . . . 2 . . . . 1 . . 11 Critical Strikes 51 | . 1 . . 4 1 1 . . 10 . 5 7 1 . 4 3 3 1 10 Actively Blocked 1 | . . . . . . . . . 1 . . . . . . . . . . Damage Taken 19179 | . 624 1047 . 869 395 759 104 544 1822 50 2360 1766 554 . 1217 1493 308 1296 3971 Core 2497 | . 107 228 . 104 29 63 28 24 138 16 282 163 11 . 133 168 44 202 757 Absorbed by Shields 209 | . . . . 31 . . . . . . 92 . . . . . . . 86 Redirected to Shielding 28 | . . . . . . . . . 28 . . . . . . . . . . Ignored by Resistances 101 | . . . . . . . . . . . 101 . . . . . . . . Regen/Repaired (Parts) 415 | . . . . . . . 78 . . . . . 100 . . 68 . . 169 Core Remaining (%) 63 | 100 57 43 . . . . . . 29 . . 34 98 . 86 . . . . Volleys Fired 779 | 7 60 75 . 101 39 91 16 39 76 7 82 29 22 . 22 14 22 56 21 Largest 5 | 2 2 3 . 3 3 3 3 3 3 5 5 2 2 . 3 3 5 5 5 Hottest 464 | 80 100 159 . 204 225 225 75 75 185 125 125 155 140 . 205 167 369 464 383 Shots Fired 1996 | 14 116 221 . 245 117 269 48 117 170 35 303 46 33 . 40 31 35 104 52 Gun 1337 | 14 114 163 . . 103 267 48 117 140 35 275 . . . . . . 41 20 Cannon 562 | . . 58 . 245 14 . . . . . 5 46 33 . 32 27 29 60 13 Launcher 76 | . . . . . . 2 . . 30 . 23 . . . 8 4 6 3 . Special 21 | . 2 . . . . . . . . . . . . . . . . . 19 Kinetic 1299 | . 78 192 . 50 46 220 48 117 114 35 280 21 13 . 28 27 7 15 8 Thermal 503 | . 2 29 . 195 71 47 . . 26 . . 25 . . . . 2 86 20 Explosive 67 | . . . . . . 2 . . 15 . 10 . . . 8 4 6 3 19 Electromagnetic 122 | 14 36 . . . . . . . 15 . 13 . 20 . 4 . 20 . . Entropic 5 | . . . . . . . . . . . . . . . . . . . 5 Robot Hit Streak 23 | 6 12 20 . 13 19 23 8 8 15 3 13 8 9 . 4 4 5 7 12 Robot Miss Streak 15 | 2 4 4 . 3 6 15 3 2 4 3 7 4 2 . 3 2 3 5 8 Penetration Max 1 | . . . . . . . . . . . . 1 . . . . . . 1 Secondary Targets 25 | . . 2 . . . 2 3 1 2 . 15 . . . . . . . . Max Gunslinging Chain 2 | . . 1 . . . 1 1 1 1 . 2 . . . . . . . . Shots Hit Robots 1115 | 9 76 127 . 125 84 136 28 70 98 17 163 37 28 . 19 28 19 31 20 Core Hits 719 | 5 33 58 . 51 72 106 13 27 68 6 80 6 8 . 28 28 18 18 94 Critical Kills 5 | . 1 . . 3 . . . . . . . 1 . . . . . . . Critical Parts Destroyed 12 | . 1 . . . . . . . 2 1 1 2 . . . 5 . . . Critical Strikes 42 | . 2 1 . 5 . . . . 6 1 1 6 2 . 2 5 1 2 8 Burn 5 | . . . . . . . . . 4 . . . . . . . . 1 . Meltdown 3 | . . . . 3 . . . . . . . . . . . . . . . Destroy 4 | . 1 . . . . . . . 1 1 1 . . . . . . . . Blast 12 | . . 1 . 2 . . . . . . . 3 2 . 2 . 1 1 . Smash 10 | . 1 . . . . . . . 1 . . 3 . . . 5 . . . Sever 6 | . . . . . . . . . . . . . . . . . . . 6 Sunder 2 | . . . . . . . . . . . . . . . . . . . 2 Melee Attacks 109 | . 7 . . . . 2 . . 23 . 15 22 7 . . 29 . 4 . Impact 109 | . 7 . . . . 2 . . 23 . 15 22 7 . . 29 . 4 . Slashing . | . . . . . . . . . . . . . . . . . . . . Piercing . | . . . . . . . . . . . . . . . . . . . . Sneak Attacks 13 | . 1 . . . . . . . . . . 4 3 . . 5 . . . Combat Hostiles . | . . . . . . . . . . . . . . . . . . . . Follow-up Attacks 3 | . . . . . . . . . . . . 1 1 . . 1 . . . Damage Inflicted 40628 | 117 1112 1892 . 2762 1765 2663 491 1232 3634 290 4175 2193 1386 . 2131 2350 964 1524 9947 Guns 13418 | 117 911 1246 . . 1499 2539 491 1232 1483 290 2624 . . . . . . 626 360 Cannons 8924 | . . 646 . 2762 266 . . . . . . 1453 1168 . 1003 497 334 396 399 Explosions 15382 | . 169 . . . . 124 . . 2034 . 1551 . . . 1128 785 630 502 8459 Melee 2175 | . 32 . . . . . . . 117 . . 740 218 . . 1068 . . . Ramming . | . . . . . . . . . . . . . . . . . . . . Kinetic 14175 | . 640 1501 . 334 480 1777 491 1232 1087 290 2624 1071 685 . 967 497 72 289 138 Thermal 7099 | . 169 391 . 2428 1285 762 . . 509 . . 382 . . . . 80 733 360 Explosive 13622 | . . . . . . 124 . . 1050 . 990 . . . 1128 785 584 502 8459 Electromagnetic 2567 | 117 271 . . . . . . . 871 . 561 . 483 . 36 . 228 . . Impact 2175 | . 32 . . . . . . . 117 . . 740 218 . . 1068 . . . Slashing 729 | . . . . . . . . . . . . . . . . . . . 729 Piercing . | . . . . . . . . . . . . . . . . . . . . Entropic 261 | . . . . . . . . . . . . . . . . . . . 261 Highest Corruption 13 | . . . . . . . . . 6 . 2 13 . . . 1 2 4 4 Average Corruption 3 | . . . . . . . . . 5 . 1 7 . . . 1 1 2 3 Corruption Purged . | . . . . . . . . . . . . . . . . . . . . Corruption Blocked . | . . . . . . . . . . . . . . . . . . . . Effects 113 | . . . . . . . . . 27 . 13 44 . . . . 13 15 1 Message Errors 35 | . . . . . . . . . 7 . 3 11 . . . . 6 8 . Matter Fused 27 | . . . . . . . . . 10 . 2 8 . . . . 2 4 1 Heat Flow Errors 10 | . . . . . . . . . 2 . . 6 . . . . . 2 . Energy Discharges 13 | . . . . . . . . . 4 . 2 5 . . . . 1 1 . Data Loss (minor) 16 | . . . . . . . . . 2 . 2 11 . . . . 1 . . Data Loss (major) 4 | . . . . . . . . . . . 3 . . . . . 1 . . Misfires 4 | . . . . . . . . . . . . 3 . . . . 1 . . Alerts 1 | . . . . . . . . . 1 . . . . . . . . . . Weapon Failures 3 | . . . . . . . . . 1 . 1 . . . . . 1 . . Overload Shots . | . . . . . . . . . . . . . . . . . . . . Overflow Damage 1726 | . 41 . . 11 . . . . 81 . . 566 120 . 14 695 18 41 139 Projectiles 393 | . . . . 11 . . . . . . . 201 112 . . 12 12 . 45 Explosions 208 | . 9 . . . . . . . 44 . . . . . 14 . 6 41 94 Melee 1125 | . 32 . . . . . . . 37 . . 365 8 . . 683 . . . Knockbacks 27 | . . 3 . 1 . . . . . . . 8 1 . 2 8 . 2 2 Impact 8 | . . . . . . . . . . . . 3 . . . 5 . . . Kinetic 18 | . . 3 . 1 . . . . . . . 5 1 . 2 3 . 2 1 Secondary 1 | . . . . . . . . . . . . . . . . . . . 1 Self-Inflicted Damage 393 | . . . . . . . . . 205 . 2 . . . . . 23 163 . Shots 15 | . . . . . . . . . 10 . 1 . . . . . 1 3 . Rammed . | . . . . . . . . . . . . . . . . . . . . Targets Rammed . | . . . . . . . . . . . . . . . . . . . . Kicked . | . . . . . . . . . . . . . . . . . . . . Crushed . | . . . . . . . . . . . . . . . . . . . . Highest Temperature 704 | 36 240 254 . 196 324 316 152 190 279 202 395 554 365 . 308 378 704 541 457 Average Temperature 101 | 15 64 31 . 66 120 80 69 51 54 97 139 203 134 . 119 53 108 170 163 Received Heat Transfer 4335 | . 219 378 . 447 171 351 54 207 306 27 687 324 156 . 234 30 100 205 439 Effects 32 | . 1 . . . . . . . . . 6 17 . . . . 6 2 . Shutdowns 8 | . . . . . . . . . . . 1 4 . . . . 1 2 . Energy Bleed 1 | . 1 . . . . . . . . . . . . . . . . . . Interference 9 | . . . . . . . . . . . 5 4 . . . . . . . Matter Decay 2 | . . . . . . . . . . . . 2 . . . . . . . Short Circuit 2 | . . . . . . . . . . . . 2 . . . . . . . Damage (major) 10 | . . . . . . . . . . . . 5 . . . . 5 . . Siege Activations . | . . . . . . . . . . . . . . . . . . . . Martial Activations . | . . . . . . . . . . . . . . . . . . . . Shielding Activations . | . . . . . . . . . . . . . . . . . . . . Robots Disrupted 1 | . . . . . . . . . . . . . . . . . 1 . . Combat Hostiles . | . . . . . . . . . . . . . . . . . . . . Robots Corrupted 14 | . 1 . . . . . . . 1 . 2 1 4 . . 4 1 . . Combat Hostiles 6 | . . . . . . . . . 1 . 2 1 1 . . 1 . . . Parts Fried 32 | . 6 . . . . 1 . . 3 . 5 6 7 . . 4 . . . Impact Corruptions 28 | . 2 . . . . . . . 1 . . 9 2 . . 14 . . . Robots Melted 9 | . . . . 5 . . . . 2 . . 1 . . . . . 1 . Combat Hostiles 5 | . . . . 3 . . . . . . . 1 . . . . . 1 . Parts Melted 10 | . . . . 8 1 . . . . . . 1 . . . . . . . Heat Transferred 10761 | . 250 814 . 4228 1331 623 . . 1435 . . 550 . . . . 87 999 444 Parts Sabotaged . | . . . . . . . . . . . . . . . . . . . . Parts Stolen . | . . . . . . . . . . . . . . . . . . . . Parts Stripped . | . . . . . . . . . . . . . . . . . . . . Power Chain Reactions 7 | . 2 . . . . . . . 4 . . . . . . . 1 . . Alert | -11 -10 -9 -8 -8 -8 -8 -8 -8 -8 -7 -7 -7 -6 -5 -5 -4 -4 -4 -4 ------- Run | Yrd Mat Mat Mat Gar Mat Gar Mat Sto Gar Fac Gar Fac Fac Fac DSF Fac Upp Upp War Maximum Alert Level 5 | . . 1 . 3 3 4 3 1 4 3 5 3 1 . 1 2 . . . Low Security (%) 19 | 100 100 85 100 12 . . . . 2 . . . 5 100 37 20 . . . Level 1 18 | . . 14 . 9 . . . 100 8 . . . 94 . 62 5 . . . Level 2 21 | . . . . 24 99 40 60 . 10 . 9 22 . . . 73 . . . Level 3 28 | . . . . 53 . 29 39 . 41 100 30 77 . . . . . . . Level 4 9 | . . . . . . 29 . . 37 . 30 . . . . . . . . Level 5 3 | . . . . . . . . . . . 29 . . . . . . . . High Security . | . . . . . . . . . . . . . . . . . . . . Max Security . | . . . . . . . . . . . . . . . . . . . . Sterilizations 1 | . . . . . . . . . . . . . . . 1 . . . . Peak Influence 1830 | 10 89 305 128 1076 702 1327 726 320 1542 830 1830 960 351 97 398 634 . . . Initial 960 | . . 5 128 76 524 444 646 293 188 809 555 960 346 97 67 208 . . . Average 614 | 1 31 107 125 680 579 876 677 260 991 795 1240 761 248 97 251 464 . . . Influence Increases 9881 | 25 367 795 . 1040 568 923 150 339 1424 85 1445 318 293 . 351 658 145 240 715 Destroy 0b10 Robot/C 5400 | . 220 460 . 520 320 500 100 180 800 60 620 160 80 . 200 280 120 160 620 Destroy 0b10 Robot/NC 380 | 25 50 55 . 20 35 10 10 35 10 . 5 30 25 . 10 35 5 . 20 Destroy Leader 790 | . 56 128 . 30 120 40 32 68 50 10 40 50 42 . 30 54 20 20 . Allied During Kill 48 | . . . . 11 26 10 . . 1 . . . . . . . . . . Successful Hack 281 | . 16 42 . 14 5 28 8 25 28 14 . . 79 . . 22 . . . Disable Machine 405 | . . 15 . 30 30 15 . . 45 . 30 60 15 . . 165 . . . Anti-Garrison Action 1500 | . . . . 350 . 300 . . 350 . 500 . . . . . . . . Destroy Structure 507 | . 10 5 . 50 2 5 . 1 110 1 130 18 7 . 66 102 . . . Lose Combat Pursuer 570 | . 15 90 . 15 30 15 . 30 30 . 120 . 45 . 45 . . 60 75 Influence Decreases 9498 | 25 353 504 187 82 960 280 781 745 172 833 409 1440 802 102 50 438 726 238 371 Entered New Map 5009 | . . 9 177 42 552 240 681 403 102 733 239 870 362 102 30 190 230 8 39 Time Decay 3591 | 25 304 415 10 . 368 . 100 342 . 100 . 530 440 . . 238 486 181 52 Lost Part 838 | . 49 80 . 40 . 20 . . 70 . 170 40 . . 20 10 10 49 280 Lost Ally 60 | . . . . . 40 20 . . . . . . . . . . . . . Squads Dispatched 22 | . 3 3 . . 4 . 1 1 . 1 . 4 3 . 1 1 . . . Investigation 4 | . 1 1 . . 1 . . . . 1 . . . . . . . . . Extermination 4 | . . . . . . . . . . . . 2 2 . . . . . . Reinforcement 12 | . 2 2 . . 1 . 1 1 . . . 2 1 . 1 1 . . . Assault 1 | . . . . . 1 . . . . . . . . . . . . . . Garrison 1 | . . . . . 1 . . . . . . . . . . . . . . Intercept . | . . . . . . . . . . . . . . . . . . . . Searches Triggered . | . . . . . . . . . . . . . . . . . . . . Construction Impeded 1 | . . . . . . . 1 . . . . . . . . . . . . Haulers Reinforced 1 | . . . . . . . . . . . . . . . . 1 . . . Active Scanning Responses . | . . . . . . . . . . . . . . . . . . . . Cargo Convoy Interrupts . | . . . . . . . . . . . . . . . . . . . . Stealth | -11 -10 -9 -8 -8 -8 -8 -8 -8 -8 -7 -7 -7 -6 -5 -5 -4 -4 -4 -4 --------- Run | Yrd Mat Mat Mat Gar Mat Gar Mat Sto Gar Fac Gar Fac Fac Fac DSF Fac Upp Upp War Distress Signals 14 | . 1 4 . . 4 . 3 1 . . . . . . . 1 . . . Communications Jammed . | . . . . . . . . . . . . . . . . . . . . Distress Signals . | . . . . . . . . . . . . . . . . . . . . Times Spotted 367 | . 20 37 . 23 21 26 9 16 42 3 40 10 6 . 12 16 7 14 65 Peak Tracking Total 30 | . 4 4 . 4 5 3 5 2 9 2 8 3 3 . 4 9 4 6 30 Tactical Retreats 27 | . 1 5 . 1 2 1 . 1 1 . 5 . 1 . 3 . . 3 3 Traps | -11 -10 -9 -8 -8 -8 -8 -8 -8 -8 -7 -7 -7 -6 -5 -5 -4 -4 -4 -4 ------- Run | Yrd Mat Mat Mat Gar Mat Gar Mat Sto Gar Fac Gar Fac Fac Fac DSF Fac Upp Upp War Traps Triggered 27 | . 1 . . 10 . 3 . 2 4 . 5 1 1 . . . . . . Indirectly 1 | . . . . . . . . . 1 . . . . . . . . . . Trap Hack Attempts . | . . . . . . . . . . . . . . . . . . . . Triggered . | . . . . . . . . . . . . . . . . . . . . Disarmed . | . . . . . . . . . . . . . . . . . . . . Reprogrammed . | . . . . . . . . . . . . . . . . . . . . Reused . | . . . . . . . . . . . . . . . . . . . . Traps Extracted . | . . . . . . . . . . . . . . . . . . . . Installed 4 | . . . . . . . . . . . . . . . . . 4 . . Triggered . | . . . . . . . . . . . . . . . . . . . . Most Traps Carried 7 | . . . . . . . . . . . . . . . . . 7 7 7 Machines | -11 -10 -9 -8 -8 -8 -8 -8 -8 -8 -7 -7 -7 -6 -5 -5 -4 -4 -4 -4 ---------- Run | Yrd Mat Mat Mat Gar Mat Gar Mat Sto Gar Fac Gar Fac Fac Fac DSF Fac Upp Upp War Machines Disabled 46 | . . 1 . 5 2 4 . . 8 . 9 4 1 . . 11 . . 1 Max in Single Turn 3 | . . 1 . 1 1 1 . . 1 . 3 1 1 . . 3 . . 1 Garrison Relay 15 | . . . . 3 . 3 . . 4 . 5 . . . . . . . . Phase Generator 1 | . . . . . . . . . . . 1 . . . . . . . . Machines Repaired . | . . . . . . . . . . . . . . . . . . . . Machines Dismantled . | . . . . . . . . . . . . . . . . . . . . Machines Sabotaged . | . . . . . . . . . . . . . . . . . . . . Overloaded Fab Kills . | . . . . . . . . . . . . . . . . . . . . Hacking | -11 -10 -9 -8 -8 -8 -8 -8 -8 -8 -7 -7 -7 -6 -5 -5 -4 -4 -4 -4 --------- Run | Yrd Mat Mat Mat Gar Mat Gar Mat Sto Gar Fac Gar Fac Fac Fac DSF Fac Upp Upp War Machines Accessed 58 | . 4 6 1 2 4 3 2 8 3 3 3 . 8 1 . 4 1 . 5 Terminals 41 | . 4 5 . 2 3 3 1 6 3 . 3 . 7 1 . 3 . . . Fabricators . | . . . . . . . . . . . . . . . . . . . . Repair Stations 4 | . . . . . . . 1 1 . . . . 1 . . 1 . . . Recycling Units 2 | . . . . . . . . . . 2 . . . . . . . . . Scanalyzers 1 | . . 1 . . . . . . . . . . . . . . . . . Garrison Access 4 | . . . 1 . 1 . . 1 . 1 . . . . . . . . . Total Hacks 133 | . 8 19 1 2 10 10 11 16 4 7 7 . 19 1 . 8 1 . 9 Successful 66 | . 4 8 1 2 3 2 4 11 2 5 1 . 7 1 . 5 1 . 9 Failed 66 | . 4 10 . . 7 8 7 5 2 2 6 . 12 . . 3 . . . Catastrophic 9 | . . 3 . . 1 1 . 1 1 . 1 . 1 . . . . . . Database Lockouts 1 | . . 1 . . . . . . . . . . . . . . . . . Manual 42 | . 8 5 . . 9 . 1 7 . . . . 8 . . 4 . . . Terminals 97 | . 8 15 . 2 9 10 7 13 4 . 7 . 15 1 . 6 . . . Fabricators . | . . . . . . . . . . . . . . . . . . . . Repair Stations 12 | . . . . . . . 4 2 . . . . 4 . . 2 . . . Recycling Units 4 | . . . . . . . . . . 4 . . . . . . . . . Scanalyzers 4 | . . 4 . . . . . . . . . . . . . . . . . Garrison Access 6 | . . . 1 . 1 . . 1 . 3 . . . . . . . . . Terminal Hacks 37 | . 1 5 . 2 1 2 1 5 2 . 1 . 3 1 . 3 1 . 9 Record 7 | . . . . . . . . . . . . . . . . . . . 7 Part Schematic 3 | . 1 1 . . . . . . . . . . . . . 1 . . . Prototype ID Bank 1 | . . . . . . . . 1 . . . . . . . . . . . Open Door 6 | . . . . 1 . . . 2 . . . . . . . . 1 . 2 Open DSF 1 | . . . . . . . . . . . . . . 1 . . . . . Level Access Points 2 | . . . . . 1 . . . . . . . 1 . . . . . . Branch Access Points 3 | . . 1 . . . . 1 . . . . . . . . 1 . . . Emergency Access Points 3 | . . 1 . 1 . . . . 1 . . . . . . . . . . Terminal Index 2 | . . . . . . . . 1 . . . . 1 . . . . . . Hauler Manifests 1 | . . 1 . . . . . . . . . . . . . . . . . Registered Components 2 | . . 1 . . . . . . . . . . . . . 1 . . . Zone Layout 2 | . . . . . . . . 1 . . . . 1 . . . . . . Garrison Registry 3 | . . . . . . 1 . . 1 . 1 . . . . . . . . Patrol Navigation 1 | . . . . . . 1 . . . . . . . . . . . . . Fabricator Hacks . | . . . . . . . . . . . . . . . . . . . . Repair Station Hacks 7 | . . . . . . . 2 1 . . . . 2 . . 2 . . . Scan Component 4 | . . . . . . . 1 1 . . . . 1 . . 1 . . . Repair 3 | . . . . . . . 1 . . . . . 1 . . 1 . . . Recycling Unit Hacks 4 | . . . . . . . . . . 4 . . . . . . . . . Recycle Component 1 | . . . . . . . . . . 1 . . . . . . . . . Process 1 | . . . . . . . . . . 1 . . . . . . . . . Report Inventory 1 | . . . . . . . . . . 1 . . . . . . . . . Retrieve Matter 1 | . . . . . . . . . . 1 . . . . . . . . . Scanalyzer 2 | . . 2 . . . . . . . . . . . . . . . . . Insert Component 1 | . . 1 . . . . . . . . . . . . . . . . . Analyze 1 | . . 1 . . . . . . . . . . . . . . . . . Garrison Access Hacks 4 | . . . 1 . 1 . . 1 . 1 . . . . . . . . . Unlock Access 4 | . . . 1 . 1 . . 1 . 1 . . . . . . . . . Unauthorized Hacks 12 | . 3 1 . . 1 . 1 4 . . . . 2 . . . . . . Terminals 12 | . 3 1 . . 1 . 1 4 . . . . 2 . . . . . . Botnet 9 | . 2 1 . . 1 . 1 2 . . . . 2 . . . . . . Operators 1 | . . . . . . . . 1 . . . . . . . . . . . Skim 2 | . 1 . . . . . . 1 . . . . . . . . . . . Fabricators . | . . . . . . . . . . . . . . . . . . . . Repair Stations . | . . . . . . . . . . . . . . . . . . . . Recycling Units . | . . . . . . . . . . . . . . . . . . . . Scanalyzers . | . . . . . . . . . . . . . . . . . . . . Garrison Access . | . . . . . . . . . . . . . . . . . . . . Data Cores Recovered . | . . . . . . . . . . . . . . . . . . . . Used . | . . . . . . . . . . . . . . . . . . . . Hacking Detections 42 | . 4 5 . 1 3 3 2 6 2 3 2 . 8 . . 3 . . . Full Trace Events 8 | . . 1 . . 2 1 . . 1 1 2 . . . . . . . . Feedback Events 1 | . . . . . . . . . . . 1 . . . . . . . . Corruption 1 | . . . . . . . . . . . 1 . . . . . . . . Feedback Blocked . | . . . . . . . . . . . . . . . . . . . . Robot Schematics Acquired . | . . . . . . . . . . . . . . . . . . . . Robots Built . | . . . . . . . . . . . . . . . . . . . . Authchips . | . . . . . . . . . . . . . . . . . . . . Time . | . . . . . . . . . . . . . . . . . . . . Total Robot Build Rating . | . . . . . . . . . . . . . . . . . . . . Part Schematics Acquired 4 | . 1 2 . . . . . . . . . . . . . 1 . . . Parts Built . | . . . . . . . . . . . . . . . . . . . . Authchips . | . . . . . . . . . . . . . . . . . . . . Time . | . . . . . . . . . . . . . . . . . . . . Total Part Build Rating . | . . . . . . . . . . . . . . . . . . . . Part Studies Acquired . | . . . . . . . . . . . . . . . . . . . . Parts Repaired 3 | . . . . . . . 1 . . . . . 1 . . 1 . . . Time 88 | . . . . . . . 44 . . . . . 22 . . 22 . . . Parts Recycled 1 | . . . . . . . . . . 1 . . . . . . . . . Recycled Matter 239 | . . . . . . . . . . 239 . . . . . . . . . Retrieved Matter 239 | . . . . . . . . . . 239 . . . . . . . . . Retrieved Components . | . . . . . . . . . . . . . . . . . . . . Parts Scanalyzed 1 | . . 1 . . . . . . . . . . . . . . . . . Part Schematics Acquired 1 | . . 1 . . . . . . . . . . . . . . . . . Parts Damaged . | . . . . . . . . . . . . . . . . . . . . Bothacking | -11 -10 -9 -8 -8 -8 -8 -8 -8 -8 -7 -7 -7 -6 -5 -5 -4 -4 -4 -4 ------------ Run | Yrd Mat Mat Mat Gar Mat Gar Mat Sto Gar Fac Gar Fac Fac Fac DSF Fac Upp Upp War Used RIF Installer . | . . . . . . . . . . . . . . . . . . . . Robots Hacked . | . . . . . . . . . . . . . . . . . . . . Non-combat . | . . . . . . . . . . . . . . . . . . . . Combat . | . . . . . . . . . . . . . . . . . . . . Robot Hacks Applied . | . . . . . . . . . . . . . . . . . . . . Relay Couplers Released 67 | . . . . 13 . 11 . . 17 . 22 . . . . 4 . . . Machine Destruction 63 | . . . . 13 . 11 . . 17 . 22 . . . . . . . . Programmers 4 | . . . . . . . . . . . . . . . . 4 . . . Fabnet Peak Effective % . | . . . . . . . . . . . . . . . . . . . . Robots Rewired 5 | . . . . 2 . 3 . . . . . . . . . . . . . Allies Hacked . | . . . . . . . . . . . . . . . . . . . . Hacks Repelled . | . . . . . . . . . . . . . . . . . . . . Allies | -11 -10 -9 -8 -8 -8 -8 -8 -8 -8 -7 -7 -7 -6 -5 -5 -4 -4 -4 -4 -------- Run | Yrd Mat Mat Mat Gar Mat Gar Mat Sto Gar Fac Gar Fac Fac Fac DSF Fac Upp Upp War Total Allies 6 | . . . . 2 . 3 . . 1 . . . . . . . . . . Largest Group 3 | . . . . 2 2 3 . . 1 . . . . . . . . . . Highest-Rated Group 72 | . . . . 56 56 72 . . 39 . . . . . . . . . . Highest-Rated Ally 39 | . . . . 31 31 24 . . 39 . . . . . . . . . . Initial Warlord ECA Mod 40 | . . . . . 7 7 14 14 14 23 23 33 32 31 31 40 40 40 40 Total Orders . | . . . . . . . . . . . . . . . . . . . . Ally Attacks 41 | . . . . 8 20 9 . . 4 . . . . . . . . . . Total Damage 956 | . . . . 189 501 223 . . 43 . . . . . . . . . . Kills 8 | . . . . 2 3 2 . . 1 . . . . . . . . . . Allies Corrupted . | . . . . . . . . . . . . . . . . . . . . Allies Melted . | . . . . . . . . . . . . . . . . . . . . Intel | -11 -10 -9 -8 -8 -8 -8 -8 -8 -8 -7 -7 -7 -6 -5 -5 -4 -4 -4 -4 ------- Run | Yrd Mat Mat Mat Gar Mat Gar Mat Sto Gar Fac Gar Fac Fac Fac DSF Fac Upp Upp War Active Infowar (turns) 5813 | 55 939 903 . . . . . . . 217 . 485 606 . 15 422 750 728 693 Optics 130 | . . . . . . . . . . . . . 130 . . . . . . Sensors 245 | . . . . . . . . . . . . 245 . . . . . . . IFF 3540 | . . . . . . . . . . 217 . 239 476 . 15 422 750 728 693 Terrain 234 | . . . . . . . . . . . . 234 . . . . . . . Structural 854 | . . 854 . . . . . . . . . . . . . . . . . Seismic 1897 | 55 939 903 . . . . . . . . . . . . . . . . . Robot Analysis Total . | . . . . . . . . . . . . . . . . . . . . Derelict Logs Recovered 1 | . . . . . . . . . . . . . . . . . . 1 . Drone Launches . | . . . . . . . . . . . . . . . . . . . . Drone Recoveries . | . . . . . . . . . . . . . . . . . . . . Exploration | -11 -10 -9 -8 -8 -8 -8 -8 -8 -8 -7 -7 -7 -6 -5 -5 -4 -4 -4 -4 ------------- Run | Yrd Mat Mat Mat Gar Mat Gar Mat Sto Gar Fac Gar Fac Fac Fac DSF Fac Upp Upp War Turns Passed 17099 | 150 939 1236 27 2092 840 1391 211 760 1373 219 1462 1492 1085 7 401 511 1267 797 839 Spaces Moved 8494 | 75 417 442 12 787 430 680 89 380 689 116 757 534 692 3 175 344 650 556 666 Core 15 | 7 . . . . . . . . . . . 4 . . . . . . 4 Treads 337 | 68 105 . . 164 . . . . . . . . . . . . . . . Legs 2654 | . . . . . . . . . . . . 182 692 3 175 344 43 553 662 Wheels 4878 | . 312 442 12 623 430 680 89 380 689 116 757 348 . . . . . . . Hover 610 | . . . . . . . . . . . . . . . . . 607 3 . Flight . | . . . . . . . . . . . . . . . . . . . . Fastest Speed 50 | 50 140 130 190 140 150 145 145 145 145 160 145 145 122 128 96 96 96 102 50 Average Speed 155 | 149 160 191 190 212 150 145 145 154 148 160 149 237 128 128 146 96 173 104 106 Slowest Speed 2350 | 160 215 215 190 480 150 150 145 160 160 160 190 2350 196 128 270 96 234 183 182 Overloaded Moves . | . . . . . . . . . . . . . . . . . . . . Propulsion Burnouts . | . . . . . . . . . . . . . . . . . . . . Robots Hopped . | . . . . . . . . . . . . . . . . . . . . Potential Cave-ins 5 | . . . . . . . . . . . . . . . . . . . 5 Cave-ins Triggered . | . . . . . . . . . . . . . . . . . . . . Exploration Rate (%) 44 | 4 74 42 2 69 43 64 18 48 79 3 57 12 19 . 83 13 58 62 94 Regions Visited 19 Branch Regions 4 Pre-discovered Areas 2 | . . . . . . . . . . . . . . . . . 1 . 1 Known Exits Taken 8 | . . . 1 . 1 . 1 1 . 1 . . 1 1 . 1 . . . Unknown Exits Taken 6 | 1 1 1 . . . . . . . . . 1 . . . . 1 1 . Scrap Searched 5 | . . . . . . . . . . . . . . . . . 2 3 . Spaces Dug 47 | . 6 . . . . . . . 1 . 1 1 3 . . 4 . 31 . Terrain Destroyed 741 | . 9 2 . . . . . . 84 . 164 21 6 . 41 50 69 103 192 Melee 16 | . 4 . . . . . . . 1 . 1 1 3 . . 2 . 4 . Projectile 131 | . 2 2 . . . . . . 1 . . 20 3 . 9 7 8 67 12 AOE 594 | . 3 . . . . . . . 82 . 163 . . . 32 41 61 32 180 Terrain Rammed . | . . . . . . . . . . . . . . . . . . . . Walls Destroyed . | . . . . . . . . . . . . . . . . . . . . Machines Disabled . | . . . . . . . . . . . . . . . . . . . . Actions | -11 -10 -9 -8 -8 -8 -8 -8 -8 -8 -7 -7 -7 -6 -5 -5 -4 -4 -4 -4 --------- Run | Yrd Mat Mat Mat Gar Mat Gar Mat Sto Gar Fac Gar Fac Fac Fac DSF Fac Upp Upp War Total 11018 | 96 560 669 15 1018 562 966 155 513 895 144 979 673 841 6 274 452 758 685 757 Wait 619 | . 27 90 . 28 31 40 44 76 15 11 34 26 58 . 17 35 39 42 6 Move 8476 | 74 416 441 12 785 430 678 88 380 687 116 756 533 691 2 174 343 649 555 666 Hop . | . . . . . . . . . . . . . . . . . . . . Pick Up 217 | 8 26 23 . 7 18 11 2 4 18 5 14 16 16 . 9 11 11 4 14 Fast Attach 76 | 6 3 3 . 1 5 . 1 3 1 . 11 4 7 . 10 1 4 3 13 Attach 120 | 1 5 11 2 6 5 6 . 2 7 2 15 10 12 2 5 7 2 7 13 Detach 24 | . . 1 . . . . . . . . 4 1 6 1 3 1 4 2 1 Swap 144 | . 7 8 1 7 8 12 1 2 32 1 5 10 5 1 8 7 15 8 6 Drop 204 | . 9 17 . 5 26 11 3 7 12 2 10 23 18 . 25 7 8 4 17 Fire 779 | 7 60 75 . 101 39 91 16 39 76 7 82 29 22 . 22 14 22 56 21 Melee 104 | . 7 . . . . 2 . . 23 . 15 21 6 . . 26 . 4 . Ram . | . . . . . . . . . . . . . . . . . . . . Kick . | . . . . . . . . . . . . . . . . . . . . Crush . | . . . . . . . . . . . . . . . . . . . . Escape Stasis 152 | . . . . 71 . 24 . . 24 . 33 . . . . . . . . Rewire 99 | . . . . 7 . 91 . . . . . . . . 1 . . . . Trap 4 | . . . . . . . . . . . . . . . . . 4 . . Miscellaneous . | . . . . . . . . . . . . . . . . . . . . Route ------- -11/Scrapyard -10/Materials (discovered 4 exits: *Mat x3 / [*Sub]) -9/Materials (discovered 4 exits: *Mat x2 / Min x2) -8/Materials -8/Garrison (discovered 2 exits: *Mat x2) -8/Materials (discovered 5 exits: Fac x3 / *Sto / Gar) -8/Garrison (discovered 4 exits: *Mat x4) -8/Materials -8/Storage (discovered 3 exits: *Fac / [*Rec] / Gar) -8/Garrison (discovered 3 exits: *Fac x3) -7/Factory -7/Garrison (discovered 3 exits: [*Fac x3]) -7/Factory -6/Factory (discovered 4 exits: *Fac x4) -5/Factory -5/DSF -4/Factory (discovered 4 exits: [*Res] / *Upp x2 / Arm) -4/Upper Caves -4/Upper Caves -4/Warlord (discovered 1 exit: [*Pro]) History --------- Turn | Location | Event 19 | -11/Scrapyard | Discovered new exit (range 16) 151 | -11/Scrapyard | Entered Materials 202 | -10/Materials | Discovered new exit (range 8) 317 | -10/Materials | Build established: Mutant 510 | -10/Materials | Lost 3 parts (1p2w) 675 | -10/Materials | Discovered new exit (range 8) 847 | -10/Materials | Build established: Scavenger-Mutant 975 | -10/Materials | Discovered new exit (range 15) 1075 | -10/Materials | Discovered new exit (range 11) 1090 | -10/Materials | Entered another Materials area 1090 | -9/Materials | Evolved 2 slots: Utility x1, Weapon x1 1140 | -9/Materials | Identified exit to Mines 1397 | -9/Materials | Build established: Skirmisher 1606 | -9/Materials | Lost 4 parts (1p1n2w) 1740 | -9/Materials | Central database locked down 1743 | -9/Materials | Discovered new exit (range 4) 2131 | -9/Materials | Core integrity fell below 50% 2233 | -9/Materials | Discovered new exit (range 16) 2252 | -9/Materials | Build established: Gunner 2326 | -9/Materials | Entered another Materials area 2326 | -8/Materials | Evolved 2 slots: Propulsion x1, Utility x1 2353 | -8/Materials | Identified exit to Garrison 2353 | -8/Materials | Entered Garrison 2407 | -8/Garrison | Triggered checkpoint 2442 | -8/Garrison | Garrison Relay disabled 2563 | -8/Garrison | Triggered checkpoint 2661 | -8/Garrison | Triggered checkpoint 2707 | -8/Garrison | Discovered new exit (range 13) 2789 | -8/Garrison | Triggered checkpoint 2819 | -8/Garrison | Garrison Relay disabled 3055 | -8/Garrison | Triggered checkpoint 3284 | -8/Garrison | Discovered new exit (range 15) 3307 | -8/Garrison | Triggered checkpoint 3326 | -8/Garrison | Garrison Relay disabled 3557 | -8/Garrison | Triggered checkpoint 3872 | -8/Garrison | Attempted to access garrison exit controls, blocked by remote lockdown 4445 | -8/Garrison | Entered Materials 4445 | -8/Materials | Accompanied by 2 allies 4753 | -8/Materials | Build established: Tank 4986 | -8/Materials | Identified exit to Factory 5154 | -8/Materials | Discovered new exit (range 15) 5173 | -8/Materials | Build established: Hacker-Gunner 5175 | -8/Materials | Garrison activated, responded to threat 5245 | -8/Materials | First assault squad dispatched 5285 | -8/Materials | Identified exit to Garrison 5285 | -8/Materials | Entered Garrison 5299 | -8/Garrison | Triggered checkpoint 5331 | -8/Garrison | Discovered new exit (range 5) 5474 | -8/Garrison | Build established: Tank 5518 | -8/Garrison | Lost 3 allies 5595 | -8/Garrison | Triggered checkpoint 5853 | -8/Garrison | Triggered checkpoint 5863 | -8/Garrison | Triggered checkpoint 5894 | -8/Garrison | Discovered new exit (range 12) 5955 | -8/Garrison | Triggered checkpoint 5993 | -8/Garrison | Garrison Relay disabled 6151 | -8/Garrison | Triggered checkpoint 6233 | -8/Garrison | Garrison Relay disabled 6253 | -8/Garrison | Triggered checkpoint 6348 | -8/Garrison | Discovered new exit (range 12) 6348 | -8/Garrison | Discovered new exit (range 58) 6348 | -8/Garrison | Discovered new exit (range 41) 6348 | -8/Garrison | Discovered new exit (range 81) 6453 | -8/Garrison | Garrison Relay disabled 6575 | -8/Garrison | Attempted to access garrison exit controls, blocked by remote lockdown 6676 | -8/Garrison | Entered Materials 6721 | -8/Materials | Identified exit to Storage 6878 | -8/Materials | Repaired Arm. Huge Wheel 6887 | -8/Materials | Entered Storage 7225 | -8/Storage | Used back door to open Recycling access 7225 | -8/Storage | Discovered new exit (range 4) 7581 | -8/Storage | Discovered exit to Factory (range 16) 7647 | -8/Storage | Identified exit to Garrison 7647 | -8/Storage | Entered Garrison 7695 | -8/Garrison | Rescued a captive Derelict 7737 | -8/Garrison | Triggered checkpoint 7751 | -8/Garrison | Garrison Relay disabled 7784 | -8/Garrison | P-60 Hacker assimilated allied 37-DT2(h) 7787 | -8/Garrison | Core integrity fell below 50% 7889 | -8/Garrison | Discovered exit to Factory (range 39) 7889 | -8/Garrison | Discovered exit to Factory (range 44) 7889 | -8/Garrison | Discovered exit to Factory (range 49) 7977 | -8/Garrison | Triggered checkpoint 8018 | -8/Garrison | Destroyed 16 combat bots 8314 | -8/Garrison | Garrison Relay disabled 8401 | -8/Garrison | Triggered checkpoint 8501 | -8/Garrison | Triggered checkpoint 8616 | -8/Garrison | Triggered checkpoint 8647 | -8/Garrison | Garrison Relay disabled 8877 | -8/Garrison | Attempted to access garrison exit controls, blocked by remote lockdown 8943 | -8/Garrison | Build established: Scavenger-Mutant 9020 | -8/Garrison | Entered Factory 9020 | -7/Factory | Evolved 2 slots: Weapon x2 9239 | -7/Factory | Identified exit to Garrison 9239 | -7/Factory | Entered Garrison 9261 | -7/Garrison | Triggered checkpoint 9270 | -7/Garrison | Garrison Relay disabled 9365 | -7/Garrison | Triggered checkpoint 9397 | -7/Garrison | Triggered checkpoint 9418 | -7/Garrison | Destroyed 9 combat bots 9437 | -7/Garrison | Lost 5 parts (2n1u2w) 9699 | -7/Garrison | Triggered checkpoint 9743 | -7/Garrison | Build established: Scavenger-Tank 9781 | -7/Garrison | Triggered checkpoint 9804 | -7/Garrison | Garrison Relay disabled 9895 | -7/Garrison | Discovered new exit (range 12) 9895 | -7/Garrison | Discovered new exit (range 40) 9895 | -7/Garrison | Discovered new exit (range 69) 10090 | -7/Garrison | Spotted B-75 Beast 10090 | -7/Garrison | Spotted B-75 Beast 10201 | -7/Garrison | Triggered checkpoint 10349 | -7/Garrison | Destroyed B-75 Beast 10356 | -7/Garrison | Destroyed B-75 Beast 10383 | -7/Garrison | Lost 12 parts (2p2n2u6w) 10423 | -7/Garrison | Phase Generator disabled 10701 | -7/Garrison | Entered Factory 11011 | -7/Factory | Core integrity fell below 50% 11120 | -7/Factory | Build established: Tank 11626 | -7/Factory | System corruption reached 10% 12063 | -7/Factory | Discovered new exit (range 11) 12193 | -7/Factory | Entered another Factory area 12193 | -6/Factory | Evolved 2 slots: Propulsion x2 12490 | -6/Factory | Build established: Mutant 13000 | -6/Factory | Repaired Imp. Titanium Leg 13202 | -6/Factory | Identified exit to Factory 13278 | -6/Factory | Entered another Factory area 13278 | -5/Factory | Evolved 2 slots: Power x1, Propulsion x1 13285 | -5/Factory | Identified exit to DSF 13285 | -5/Factory | Entered DSF 13317 | -5/DSF | Additional patrols routed to DSF 13486 | -5/DSF | Discovered new exit (range 14) 13491 | -5/DSF | Found Powered Armor 13502 | -5/DSF | Found Powered Armor 13505 | -5/DSF | Found Powered Armor 13530 | -5/DSF | Sterilization system engaged 13536 | -5/DSF | Build established: Tank 13550 | -5/DSF | Ambient heat levels rising (+10) 13565 | -5/DSF | Ambient heat levels rising (+10) 13580 | -5/DSF | Ambient heat levels rising (+10) 13595 | -5/DSF | Ambient heat levels rising (+10) 13610 | -5/DSF | Ambient heat levels rising (+10) 13625 | -5/DSF | Ambient heat levels rising (+10) 13640 | -5/DSF | Ambient heat levels rising (+10) 13655 | -5/DSF | Ambient heat levels rising (+10) 13670 | -5/DSF | Ambient heat levels rising (+10) 13685 | -5/DSF | Ambient heat levels rising (+10) 13686 | -5/DSF | Entered Factory 13686 | -4/Factory | Evolved 2 slots: Utility x2 13725 | -4/Factory | Repaired Coolant Injector 13765 | -4/Factory | Identified exit to Upper Caves 13765 | -4/Factory | Identified exit to Armory 13887 | -4/Factory | Discovered new exit (range 15) 13996 | -4/Factory | Build established: Hacker-Tank 14197 | -4/Factory | Entered Upper Caves 14248 | -4/Upper Caves | Found DCF Scrap (12 items) 14352 | -4/Upper Caves | Met a Warlord Commander 14353 | -4/Upper Caves | Learned location of Warlord (-4) 14354 | -4/Upper Caves | Warlord Commander delivered Encrypted Comm Array 14737 | -4/Upper Caves | Build established: Derelict-Tank 15424 | -4/Upper Caves | Discovered new exit (range 15) 15464 | -4/Upper Caves | Entered another Upper Caves area 15520 | -4/Upper Caves | Lost 5 parts (1p2u2w) 15530 | -4/Upper Caves | Learned Research stockpile data 15560 | -4/Upper Caves | Encountered a Warlord checkpoint 15613 | -4/Upper Caves | Spotted B-86 Titan 15849 | -4/Upper Caves | Build established: Hacker-Skirmisher 16029 | -4/Upper Caves | Attracted the attention of an 0b10 checkpoint 16140 | -4/Upper Caves | Destroyed B-86 Titan 16253 | -4/Upper Caves | Discovered new exit (range 7) 16261 | -4/Upper Caves | Entered Warlord 16300 | -4/Warlord | System corruption cleaned by Quarantine Array 16360 | -4/Warlord | Learned 4 Research zone layouts 16360 | -4/Warlord | Learned 4 Access zone layouts 16361 | -4/Warlord | Learned Testing security intel 16361 | -4/Warlord | Learned Factory scanalyzer intel 16361 | -4/Warlord | Learned Research scanalyzer intel 16555 | -4/Warlord | Met Warlord 16580 | -4/Warlord | Warlord's base attacked by MAIN.C 16641 | -4/Warlord | Found Prototype Energy Cannon 16643 | -4/Warlord | Found Prototype Energy Cannon 16809 | -4/Warlord | Identified Vortex Driver (x2) 16820 | -4/Warlord | Found Prototype Reactor 16824 | -4/Warlord | Found Prototype Device 16824 | -4/Warlord | Identified Exp. Phase Shifter 16840 | -4/Warlord | Found Prototype Processor 16840 | -4/Warlord | Identified Exp. Target Analyzer 16862 | -4/Warlord | Found Prototype Special Weapon 16862 | -4/Warlord | Identified RU-N14's Throwing Claymores v3 16871 | -4/Warlord | Found RU-N14's Throwing Claymores v3 16876 | -4/Warlord | Found RU-N14's Throwing Claymores v3 16878 | -4/Warlord | Found RU-N14's Throwing Claymores v3 16928 | -4/Warlord | Opened side exit 16930 | -4/Warlord | Warlord forces counterattacked 16947 | -4/Warlord | Spotted Executioner 16959 | -4/Warlord | Discovered new exit (range 11) 16961 | -4/Warlord | Spotted Executioner 16964 | -4/Warlord | Spotted Executioner 16969 | -4/Warlord | Destroyed Executioner 16976 | -4/Warlord | Destroyed Executioner 16978 | -4/Warlord | Core integrity fell below 50% 16981 | -4/Warlord | Destroyed Executioner 16990 | -4/Warlord | Identified Vortex Chain Reactor 17002 | -4/Warlord | Destroyed 27 combat bots 17032 | -4/Warlord | Lost 15 parts (2p6n3u4w) 17051 | -4/Warlord | Spotted Executioner 17076 | -4/Warlord | Lost 11 allies 17080 | -4/Warlord | Spotted Striker 17080 | -4/Warlord | Spotted Striker 17080 | -4/Warlord | Spotted Executioner 17095 | -4/Warlord | Core integrity fell below 20% 17098 | -4/Warlord | Released all parts (5) 17100 | -4/Warlord | Destroyed by Striker with Plasma Lance Last Messages --------------- 17093_ Vortex Driver destroyed. 17093_ S-27 Virus destroyed. 17094_ Hvy. Gauss Cannon destroyed. 17094_ Penetrated by Slug. 17095_ The unstable cave ceiling collapses. 17096_ X-87 Electro suffers critical hit (Burn). 17096_ Hvy. Gauss Cannon destroyed. 17098_ Penetrated by Slug. 17098_ Adv. Heat Sink destroyed. 17098_ Penetrated by Slug. 17098_ Flexi-carbon Leg destroyed. 17098_ Released Remote Force Field. 17098_ Released Hcp. Storage Unit. 17098_ Released Adv. System Shield. 17098_ Released Exp. Target Analyzer. 17098_ Released Vortex Driver. 17098_ 7F-G7P(g) destroyed. 17099_ Slug penetrates H3-9FN(l). 17099_ H3-9FN(l) destroyed. 17100_ Penetrated by Slug. Map ----- +----------------------------------------------------+ | ??????## #???????## ###??? | | ??????# #??????## ###? | | ??????# ###????## < #? | | ??????# # ???## ## | | ??????# ""?### # | | ??????## "## # # | | ???????## "# # | | ?????????#" "# # # | | ????????##"" ## # # | | ???????## # "# # | | ????# # | | ?????????#### ## | | ??????????# ### | | ?????????# # # # # # | | ?????????# ### ## # | | ?????????## # # # ### | | ?????????## # ## ""# ##? | | ##????##?# # ## ##; ## | | " "######## ### # ## ## | | % "" " # ## # # | | !% " ! # ##### ## # | | %=% %[*#* % | | !%%! !!!% [%= # | | = %% **%%=% %= # ## #? | | % %%!#! [ ## # ; #? | | " """ [= % = #@ ##? | | """ """"" %=[%## #%K #? | | "############ [%=# # K! #? | | ##?????????## #/*#%!%!=%!] #? | | ???????????# [#*=!*%!= #? | | ???????????#### ##=*!=!%[/##? | | ?????????????#" ==[%%!!Eg;#?? | | ????????????#" #=[=[xggh!g #? | | ????????????#" # ##[ih!%= ##? | | ????????????#" "####*;]gg%%# ? | | ????????????#" %" ?# #;=*g=[ | | ????????????#" ""# ##; [%* # | | ????????????" #"#?## %=[; | | ???????????# #??# %%=g " | | ???????????# ## ???# =[ " | | ??????????? #?"#????# ; | | ??????????????"??????" ## | | ?????????????????????## ##? # | | ?????????????????????? #??## | | ?????????????????????? ##???? | | ?????????????????????###"#????? | | ????????????????????????#?????? | | ??????????????????????????????? | | ??????????????????????????????? | | ??????????????????????????????? | +----------------------------------------------------+ Best States ------------- Heat Dissipation 74 Coolant Potential 80 Energy Generation 55 Energy Capacity 700 Matter Stores 300 Matter Capacity 400 Sight Range 22 Robot Scan Range 15 Terrain Scan Range 20 Terrain Scan Density 10 Armor Coverage 750 Resistance: TH 20 Core Shielding 30 Evasion (%) 55 Targeting Accuracy 6 Target Analysis 10 Recoil Reduction 2 Offensive Hacking 42 Defensive Hacking 14 Trap Extractor Capacity 8 Item Schematics ----------------- Hcp. Storage Unit | -10/Materials | Hacked Lrg. Storage Unit | -9/Materials | Hacked Med. Storage Unit | -9/Materials | Scanalyzed Angular Momentum Engine | -4/Factory | Hacked Robot Schematics ------------------ None Fabricated ------------ Nothing Repaired ---------- Arm. Huge Wheel | 68% | -8/Materials Imp. Titanium Leg | 39% | -6/Factory Coolant Injector | 9% | -4/Factory Studied --------- None Alien Tech Used ----------------- None Achievements -------------- None Challenges ------------ None Game ------ Seed PointyHeavyReactor Manual? 0 Play Time 02:56:45 Cumulative 362.4 hours Start 2026.07.17 @ 19:16:24 End 2026.07.17 @ 22:50:56 Sessions 5 Manual Loads 0 Difficulty Rogue Special Mode None Game No. 185 Rogue 185 Adventurer 0 Explorer 0 Win Type - Total 7 Types 4/0/1/1/0/0/0/1/0/0 Lore% 70 Gallery% 72 Achievement% 63 Wizard Run 0 Options --------- Layout 1 ASCII 0 Keyboard 0 Movement Mouse Keybinds 0 Fullscreen 1 Font 18/SmallcapsGlow Map View 54x44 Zoom Use 0% Tactical HUD 1 Map Filters NONE Filters NONE Steam 0 RUN: b5792c7e-0300-48b0-acdd-fe383e9e70ae